Workbook

Sheet Inizio
B1: INFORMAZIONI SU QUESTO MODELLO
B2: È possibile usare questa analisi sulla redditività cliente per tenere traccia delle attività cliente, dei costo del venduto e di altri costi.
B3: Immettere nella tabella informazioni quali il nome società e la data di costituzione insieme ai dettagli.
B4: I valori nelle celle contenenti formule e la tabella metriche di riepilogo vengono calcolati automaticamente e aggiornano il grafico.
B5: Nota:
B6: Altre istruzioni sono state fornite nella colonna A nel foglio di lavoro REDDITIVITÀ CLIENTE. Questo testo è stato nascosto intenzionalmente. Per rimuovere il testo, selezionare la colonna A, quindi scegliere ELIMINA. Per visualizzare il testo, selezionare la colonna A, quindi modificare il colore del carattere.
B7: Per ulteriori informazioni su questa tabella del foglio di lavoro, premere MAIUSC, quindi F10 in una tabella, selezionare l'opzione TABELLA, quindi selezionare TESTO ALTERNATIVO.

Sheet Redditività cliente
A1: Creare l'analisi redditività cliente nel foglio di lavoro. Istruzioni utili per l'uso di questo foglio di lavoro si trovano nelle celle di questa colonna. Freccia verso il basso per iniziare.
A2: Immettere il nome società nella cella a destra. | B2: Nome società
A3: Il titolo di questo foglio di lavoro è nella cella a destra. | B3: Analisi redditività cliente
A4: Immettere la data nella cella a destra. | B4: Data
A5: I suggerimenti si trovano nella cella a destra. | B5: Le celle grigie vengono calcolate automaticamente. Non è necessario immettervi alcun dato.
A6: Immettere i dettagli nella tabella dell'attività cliente a partire dalla cella a destra. L'istruzione successiva si trova nella cella A12. | B6: Attività cliente: | C6: Nome segmento 1 | D6: Nome segmento 2 | E6: Nome segmento 3 | F6: Risultato complessivo
B7: Numero di clienti attivi, inizio periodo | C7: 5 | D7: 8 | E7: 8 | F7: =SUM(C7:E7) -> 21
B8: Numero di clienti aggiunti | C8: 2 | D8: 4 | E8: 4 | F8: =SUM(C8:E8) -> 10
B9: Numero di clienti persi/rapporto terminato | C9: -1 | D9: -2 | E9: -2 | F9: =SUM(C9:E9) -> -5
B10: Numero di clienti attivi, fine periodo | C10: =SUBTOTAL(109,AttivitàCliente[Nome segmento 1]) -> 6 | D10: =SUBTOTAL(109,AttivitàCliente[Nome segmento 2]) -> 10 | E10: =SUBTOTAL(109,AttivitàCliente[Nome segmento 3]) -> 10 | F10: =SUBTOTAL(109,AttivitàCliente[Risultato complessivo]) -> 26
A12: Immettere i dettagli nella tabella dell'analisi redditività a partire dalla cella a destra. L'istruzione successiva si trova nella cella A16. | B12: Analisi redditività: | C12: Nome segmento 1 | D12: Nome segmento 2 | E12: Nome segmento 3 | F12: Risultato complessivo
B13: Ricavi per segmento | C13: € 1,500,000.00 | D13: € 1,800,000.00 | E13: € 2,500,000.00 | F13: =SUM(AnalisiRedditività[[#This Row],[Nome segmento 1]:[Nome segmento 3]]) -> € 5,800,000.00
B14: Ponderazione | C14: =+C13/$F$13 -> 26% | D14: =+D13/$F$13 -> 31% | E14: =+E13/$F$13 -> 43% | F14: =SUM(AnalisiRedditività[[#This Row],[Nome segmento 1]:[Nome segmento 3]]) -> 100%
A16: Immettere i dettagli nella tabella del costo del venduto a partire dalla cella a destra. L'istruzione successiva si trova nella cella A23. | B16: Costo del venduto: | C16: Nome segmento 1 | D16: Nome segmento 2 | E16: Nome segmento 3 | F16: Risultato complessivo
B17: Costi di servizi e assistenza continuativi | C17: € 1,000,000.00 | D17: € 1,400,000.00 | E17: € 1,400,000.00 | F17: =SUM(C17:E17) -> € 3,800,000.00
B18: Costi di altri clienti diretti | C18: € 200,000.00 | D18: € 100,000.00 | E18: € 100,000.00 | F18: =SUM(C18:E18) -> € 400,000.00
B19: Costo totale del venduto | C19: =SUM(C17:C18) -> € 1,200,000.00 | D19: =SUM(D17:D18) -> € 1,500,000.00 | E19: =SUM(E17:E18) -> € 1,500,000.00 | F19: =SUM(F17:F18) -> € 4,200,000.00
B20: Profitto lordo | C20: =+C13-C19 -> € 300,000.00 | D20: =+D13-D19 -> € 300,000.00 | E20: =+E13-E19 -> € 1,000,000.00 | F20: =+F13-F19 -> € 1,600,000.00
B21: Ponderazione | C21: =MAX(0, MIN(1,C20/$F$20)) -> 19% | D21: =MAX(0, MIN(1,D20/$F$20)) -> 19% | E21: =MAX(0, MIN(1,E20/$F$20)) -> 63% | F21: =SUM(C21:E21) -> 100%
A23: Immettere i dettagli nella tabella degli altri costi a partire dalla cella a destra. L'istruzione successiva si trova nella cella A31. | B23: Altri costi: | C23: Nome segmento 1 | D23: Nome segmento 2 | E23: Nome segmento 3 | F23: Risultato complessivo
B24: Acquisizione clienti | C24: € 105,000.00 | D24: € 120,000.00 | E24: € 235,000.00 | F24: =SUM(AltriCosti[[#This Row],[Nome segmento 1]:[Nome segmento 3]]) -> € 460,000.00
B25: Marketing clienti | C25: € 150,000.00 | D25: € 125,000.00 | E25: € 275,000.00 | F25: =SUM(C25:E25) -> € 550,000.00
B26: Terminazione rapporto clienti | C26: € 80,000.00 | D26: € 190,000.00 | E26: € 140,000.00 | F26: =SUM(C26:E26) -> € 410,000.00
B27: Totale costi altri clienti | C27: =SUM(C24:C26) -> € 335,000.00 | D27: =SUM(D24:D26) -> € 435,000.00 | E27: =SUM(E24:E26) -> € 650,000.00 | F27: =SUM(F24:F26) -> € 1,420,000.00
B28: Profitto cliente per segmento | C28: =+C20-C27 -> -€ 35,000.00 | D28: =+D20-D27 -> -€ 135,000.00 | E28: =+E20-E27 -> € 350,000.00 | F28: =SUM(C28:E28) -> € 180,000.00
B29: Ponderazione | C29: =MAX(0,MIN(1, C28/$F$28)) -> 0% | D29: =MAX(0,MIN(1, D28/$F$28)) -> 0% | E29: =MAX(0,MIN(1, E28/$F$28)) -> 100% | F29: =SUM(C29:E29) -> 100%
A31: La tabella delle metriche di riepilogo viene aggiornata automaticamente a partire dalla cella a destra. L'istruzione successiva si trova nella cella A37. | B31: Metriche di riepilogo: | C31: Nome segmento 1 | D31: Nome segmento 2 | E31: Nome segmento 3 | F31: Tendenza
B32: Costo medio per cliente acquisito | C32: =+C24/C8 -> € 52,500.00 | D32: =+D24/D8 -> € 30,000.00 | E32: =+E24/E8 -> € 58,750.00
B33: Costo medio per cliente con rapporto terminato | C33: =-C26/C9 -> € 80,000.00 | D33: =-D26/D9 -> € 95,000.00 | E33: =-E26/E9 -> € 70,000.00
B34: Costo medio marketing per cliente attivo | C34: =+C26/AttivitàCliente[[#Totals],[Nome segmento 1]] -> € 13,333.33 | D34: =+D25/AttivitàCliente[[#Totals],[Nome segmento 2]] -> € 12,500.00 | E34: =+E25/AttivitàCliente[[#Totals],[Nome segmento 3]] -> € 27,500.00
B35: Profitto medio (perdite) per cliente | C35: =+C29/AttivitàCliente[[#Totals],[Nome segmento 1]] -> € 0.00 | D35: =+D28/AttivitàCliente[[#Totals],[Nome segmento 2]] -> -€ 13,500.00 | E35: =+E28/AttivitàCliente[[#Totals],[Nome segmento 3]] -> € 35,000.00
A37: L'istogramma a colonne raggruppate che indica le metriche di riepilogo per segmento cliente è nella cella a destra. | B37: L'istogramma a colonne raggruppate che indica le metriche di riepilogo per ogni segmento cliente è in questa cella.
